Cogmind - Beta 12 X6 @@@ ROGUE MODE // 2023.01.29 @ 01:13:49 // Winter2022/Polymind Player: albenzo Result: Destroyed by P-70 Sage with Tesla Rifle Performance ------------- Evolutions (6) 3000 Regions Visited (16) 3200 Robots Destroyed (1) 5 Value Destroyed (27) 27 Prototype IDs (0) 0 Alien Tech Used (0) 0 Bonus (9125) 9125 TOTAL SCORE: 14627 Bonus ------- Polymind Skill 4798 Pacifist 1987 Follower Combat Kills 40 Entered Garrisons 800 Used RIF Installer 1500 Cogmind --------- Core Integrity 0/1150 Matter 0/0 Energy 24/25 System Corruption 9% Temperature Cool (0) Movement Core (50) Location -4/Upper Caves Parts ------- > --- POWER (1) -------- (None) > --- PROPULSION (2) --- (None) > --- UTILITY (3) ------ Terrain Scan Processor > --- WEAPON (1) ------- (None) > --- INVENTORY (0) ---- (None) Peak State ------------ > --- POWER ------------ Micro Fission Core > --- PROPULSION ------- Antigrav System Antigrav System > --- UTILITY ---------- Improved Heat Sink Improved Heat Sink Improved Target Analyzer > --- WEAPON ----------- High-powered Shock Rifle Tesla Rifle Improved Remote Datajack > --- INVENTORY -------- (None) [Rating: 46] Favorites ----------- Power Light Ion Engine Engine Light Ion Engine Power Core Light Nuclear Core Propulsion Wheel Wheel Wheel Hover Unit Hover Unit Flight Unit Flight Unit Utility Seismic Detector Device Seismic Detector Storage Medium Matter Pod Processor Terrain Scan Processor Hackware Hacking Suite Weapon Mining Laser Energy Gun Tesla Rifle Ballistic Gun Autogun Special Weapon Mining Laser Special Melee Weapon Datajack Build | -11 -10 -9 -9 -8 -7 -6 -6 -6 -6 -5 -5 -5 -4 -4 -4 -4 ------- Run | Jun Mat Mat Min Mat Fac Fac Gar Fac Gar Fac Gar Fac Fac Gar Fac Upp Slots Evolved . | . . . . . . . . . . . . . . . . . Power . | . . . . . . . . . . . . . . . . . Propulsion . | . . . . . . . . . . . . . . . . . Utility . | . . . . . . . . . . . . . . . . . Weapon . | . . . . . . . . . . . . . . . . . Parts Attached . | . . . . . . . . . . . . . . . . . Power . | . . . . . . . . . . . . . . . . . Engine . | . . . . . . . . . . . . . . . . . Core . | . . . . . . . . . . . . . . . . . Reactor . | . . . . . . . . . . . . . . . . . Propulsion . | . . . . . . . . . . . . . . . . . Treads . | . . . . . . . . . . . . . . . . . Leg . | . . . . . . . . . . . . . . . . . Wheel . | . . . . . . . . . . . . . . . . . Hover . | . . . . . . . . . . . . . . . . . Flight . | . . . . . . . . . . . . . . . . . Utility . | . . . . . . . . . . . . . . . . . Device . | . . . . . . . . . . . . . . . . . Storage . | . . . . . . . . . . . . . . . . . Processor . | . . . . . . . . . . . . . . . . . Hackware . | . . . . . . . . . . . . . . . . . Protection . | . . . . . . . . . . . . . . . . . Artifact . | . . . . . . . . . . . . . . . . . Weapon . | . . . . . . . . . . . . . . . . . Energy Gun . | . . . . . . . . . . . . . . . . . Energy Cannon . | . . . . . . . . . . . . . . . . . Ballistic Gun . | . . . . . . . . . . . . . . . . . Ballistic Cannon . | . . . . . . . . . . . . . . . . . Launcher . | . . . . . . . . . . . . . . . . . Special Weapon . | . . . . . . . . . . . . . . . . . Impact Weapon . | . . . . . . . . . . . . . . . . . Slashing Weapon . | . . . . . . . . . . . . . . . . . Piercing Weapon . | . . . . . . . . . . . . . . . . . Special Melee Weapon . | . . . . . . . . . . . . . . . . . Unidentified Prototypes . | . . . . . . . . . . . . . . . . . Parts Lost 37 | . 5 . . 3 . . 4 . 2 . 17 . . . 6 . Power 7 | . 1 . . 1 . . 1 . 1 . 2 . . . 1 . Propulsion 16 | . 2 . . 1 . . 2 . 1 . 8 . . . 2 . Utility 5 | . 1 . . . . . . . . . 2 . . . 2 . Weapon 9 | . 1 . . 1 . . 1 . . . 5 . . . 1 . Highest Loss Streak 17 | . 5 . . 3 . . 4 . 2 . 17 . . . 6 . To Critical Strikes . | . . . . . . . . . . . . . . . . . Average Slot Usage (%) 71 | . 87 16 16 79 100 100 88 70 100 100 69 66 100 100 77 14 Engine 10 | . 12 . . 15 25 25 22 17 23 . . 9 14 14 10 . Core 2 | . . . . . . . . . 1 25 15 . . . . . Wheel 15 | . 30 . . . . . . 35 46 . . 18 28 28 21 . Hover 1 | . . . . 25 . . . . . . 3 . . . . . Flight 9 | . . . . 6 50 50 43 . 3 50 20 . . . . . Device 10 | . 31 16 16 2 . . . . . . 5 18 28 28 20 . Storage 3 | . . . . . . . . 17 23 . . . . . . . Processor 6 | . . . . . . . . . . . 2 9 14 14 14 14 Ballistic Gun 5 | . . . . 3 25 25 22 . 1 25 16 . . . . . Special Weapon 4 | . 12 . . . . . . . . . 2 9 14 14 10 . Naked Turns 75 | . . . . 1 . . 13 24 . . 24 13 . . . . Heaviest Build 21 | 6 6 1 1 4 4 4 4 5 8 8 21 6 6 6 6 . Greatest Support 22 | 20 20 3 3 12 8 8 8 20 20 8 22 20 20 20 20 3 Greatest Overweight (x) 3 | . . . . . . . . . . . 3 . . . . . Average Overweight (x) . | . . . . . . . . . . . . . . . . . Largest Inventory Capacity 5 | . . . . 1 . . . 1 1 . 5 . . . . . Average Capacity . | . . . . . . . . . . . 1 . . . . . Most Carried . | . . . . . . . . . . . . . . . . . Average Carried . | . . . . . . . . . . . . . . . . . Final Capacity 1 | . . . . . . . . 1 . . . . . . . . Final Carried . | . . . . . . . . . . . . . . . . . Class Distribution -------------------- 43% | Builder 21% | Swarmer 12% | Worker 11% | Tunneler 4% | Cogmind 3% | Operator Dominant Class ---------------- Tunneler | -10/Materials Tunneler | -9/Materials Tunneler | -9/Mines Operator | -8/Materials Swarmer | -7/Factory Swarmer | -6/Factory Swarmer | -6/Garrison Worker | -6/Factory Worker | -6/Garrison Swarmer | -5/Factory Swarmer | -5/Garrison Builder | -5/Factory Builder | -4/Factory Builder | -4/Garrison Builder | -4/Factory Builder | -4/Upper Caves Resources | -11 -10 -9 -9 -8 -7 -6 -6 -6 -6 -5 -5 -5 -4 -4 -4 -4 ----------- Run | Jun Mat Mat Min Mat Fac Fac Gar Fac Gar Fac Gar Fac Fac Gar Fac Upp Matter Collected 94 | . . . . . . . . . 86 8 . . . . . . Remotely . | . . . . . . . . . . . . . . . . . Salvage Created . | . . . . . . . . . . . . . . . . . Parts 2 | . . . . . . . . . . . 2 . . . . . Haulers Intercepted . | . . . . . . . . . . . . . . . . . Recyclers Shooed 1 | . . . . . . . . . . . . . . . 1 . Parts Field Recycled . | . . . . . . . . . . . . . . . . . Retrieved Matter . | . . . . . . . . . . . . . . . . . Parts Self-Destructed 1 | . . . . . . . . . . . . . . . . 1 Prevented . | . . . . . . . . . . . . . . . . . Kills | -11 -10 -9 -9 -8 -7 -6 -6 -6 -6 -5 -5 -5 -4 -4 -4 -4 ------- Run | Jun Mat Mat Min Mat Fac Fac Gar Fac Gar Fac Gar Fac Fac Gar Fac Upp Combat Hostiles Destroyed 1 | . . . . . . . . . . . 1 . . . . . Guns 1 | . . . . . . . . . . . 1 . . . . . Classes Destroyed 1 | . . . . . . . . . . . 1 . . . . . Swarmer 1 | . . . . . . . . . . . 1 . . . . . Best Kill Streak 1 | . . . . . . . . . . . 1 . . . . . Combat Bots Only 1 | . . . . . . . . . . . 1 . . . . . Max Kills in Single Turn 1 | . . . . . . . . . . . 1 . . . . . Gunslinging . | . . . . . . . . . . . . . . . . . Exploded . | . . . . . . . . . . . . . . . . . Melee . | . . . . . . . . . . . . . . . . . Uniques/NPCs Destroyed . | . . . . . . . . . . . . . . . . . Combat | -11 -10 -9 -9 -8 -7 -6 -6 -6 -6 -5 -5 -5 -4 -4 -4 -4 -------- Run | Jun Mat Mat Min Mat Fac Fac Gar Fac Gar Fac Gar Fac Fac Gar Fac Upp Damage Taken 5186 | . 279 . 67 386 6 . 659 . 328 20 2019 . 31 . 956 435 Core 3140 | . 89 . 54 203 . . 551 . 176 . 904 . . . 728 435 Absorbed by Shields 256 | . . . . . . . 44 . . . 212 . . . . . Core Remaining (%) 62 | 100 64 . 86 63 100 . . . 14 . . 9 . . . . Volleys Fired 23 | . . . . . . . 10 . . 4 7 . 1 . 1 . Largest 2 | . . . . . . . 1 . . 1 2 . 1 . 1 . Hottest 125 | . . . . . . . 20 . . 23 125 . 20 . 20 . Shots Fired 26 | . . . . . . . 10 . . 4 10 . 1 . 1 . Gun 24 | . . . . . . . 10 . . 4 10 . . . . . Cannon . | . . . . . . . . . . . . . . . . . Launcher . | . . . . . . . . . . . . . . . . . Special 2 | . . . . . . . . . . . . . 1 . 1 . Kinetic 18 | . . . . . . . 10 . . 4 4 . . . . . Thermal 2 | . . . . . . . . . . . . . 1 . 1 . Explosive . | . . . . . . . . . . . . . . . . . Electromagnetic 6 | . . . . . . . . . . . 6 . . . . . Robot Hit Streak 5 | . . . . . . . 1 . . 3 5 . . . . . Robot Miss Streak 4 | . . . . . . . 4 . . 2 1 . . . 1 . Penetration Max . | . . . . . . . . . . . . . . . . . Secondary Targets 1 | . . . . . . . . . . . 1 . . . . . Max Gunslinging Chain 1 | . . . . . . . . . . . 1 . . . . . Shots Hit Robots 13 | . . . . . . . 2 . . 3 8 . . . . . Core Hits 11 | . . . . . . . 3 . . 2 6 . . . . . Critical Kills . | . . . . . . . . . . . . . . . . . Critical Parts Destroyed . | . . . . . . . . . . . . . . . . . Critical Strikes . | . . . . . . . . . . . . . . . . . Melee Attacks . | . . . . . . . . . . . . . . . . . Impact . | . . . . . . . . . . . . . . . . . Slashing . | . . . . . . . . . . . . . . . . . Piercing . | . . . . . . . . . . . . . . . . . Sneak Attacks . | . . . . . . . . . . . . . . . . . Combat Hostiles . | . . . . . . . . . . . . . . . . . Follow-up Attacks . | . . . . . . . . . . . . . . . . . Damage Inflicted 346 | . 18 . . . . . 60 . 2 45 192 . . . 29 . Guns 185 | . . . . . . . 47 . . 45 93 . . . . . Cannons . | . . . . . . . . . . . . . . . . . Explosions . | . . . . . . . . . . . . . . . . . Melee . | . . . . . . . . . . . . . . . . . Ramming 161 | . 18 . . . . . 13 . 2 . 99 . . . 29 . Kinetic 141 | . . . . . . . 47 . . 45 49 . . . . . Thermal . | . . . . . . . . . . . . . . . . . Explosive . | . . . . . . . . . . . . . . . . . Electromagnetic 44 | . . . . . . . . . . . 44 . . . . . Impact . | . . . . . . . . . . . . . . . . . Slashing . | . . . . . . . . . . . . . . . . . Piercing . | . . . . . . . . . . . . . . . . . Highest Corruption 8 | . . . . . . . . . . . 4 5 . . 6 8 Average Corruption 5 | . . . . . . . . . . . 2 5 . . 4 6 Corruption Purged . | . . . . . . . . . . . . . . . . . Corruption Blocked . | . . . . . . . . . . . . . . . . . Effects 10 | . . . . . . . . . . . 2 1 . . 1 6 Message Errors 2 | . . . . . . . . . . . . . . . . 2 Matter Fused 1 | . . . . . . . . . . . 1 . . . . . Heat Flow Errors 1 | . . . . . . . . . . . . . . . 1 . Energy Discharges 1 | . . . . . . . . . . . . 1 . . . . Data Loss (minor) 1 | . . . . . . . . . . . . . . . . 1 Data Loss (major) 3 | . . . . . . . . . . . 1 . . . . 2 Alerts 1 | . . . . . . . . . . . . . . . . 1 Overload Shots . | . . . . . . . . . . . . . . . . . Overflow Damage . | . . . . . . . . . . . . . . . . . Projectiles . | . . . . . . . . . . . . . . . . . Explosions . | . . . . . . . . . . . . . . . . . Melee . | . . . . . . . . . . . . . . . . . Knockbacks 3 | . . . . . . . 2 . . . . . . . 1 . Impact 3 | . . . . . . . 2 . . . . . . . 1 . Kinetic . | . . . . . . . . . . . . . . . . . Secondary . | . . . . . . . . . . . . . . . . . Self-Inflicted Damage 75 | . 8 . . . . . 6 . 1 . 47 . . . 13 . Shots . | . . . . . . . . . . . . . . . . . Rammed 35 | . 3 . . . . . 2 . 1 . 24 . . . 5 . Targets Rammed 35 | . 3 . . . . . 2 . 1 . 24 . . . 5 . Kicked . | . . . . . . . . . . . . . . . . . Crushed . | . . . . . . . . . . . . . . . . . Highest Temperature 187 | . 1 . . 32 . . 13 . 9 11 22 . 4 . 187 . Average Temperature 27 | . 1 . . 16 . . 7 . 4 8 9 . 3 . 78 . Received Heat Transfer 566 | . 54 . . 99 . . 85 . 45 . 205 . . . 60 18 Siege Activations . | . . . . . . . . . . . . . . . . . Robots Corrupted . | . . . . . . . . . . . . . . . . . Combat Hostiles . | . . . . . . . . . . . . . . . . . Parts Fried . | . . . . . . . . . . . . . . . . . Impact Corruptions . | . . . . . . . . . . . . . . . . . Robots Melted . | . . . . . . . . . . . . . . . . . Combat Hostiles . | . . . . . . . . . . . . . . . . . Parts Melted . | . . . . . . . . . . . . . . . . . Heat Transferred . | . . . . . . . . . . . . . . . . . Parts Sabotaged . | . . . . . . . . . . . . . . . . . Parts Stolen . | . . . . . . . . . . . . . . . . . Parts Stripped . | . . . . . . . . . . . . . . . . . Power Chain Reactions . | . . . . . . . . . . . . . . . . . Missiles Intercepted . | . . . . . . . . . . . . . . . . . Alert | -11 -10 -9 -9 -8 -7 -6 -6 -6 -6 -5 -5 -5 -4 -4 -4 -4 ------- Run | Jun Mat Mat Min Mat Fac Fac Gar Fac Gar Fac Gar Fac Fac Gar Fac Upp Peak Influence 201 | . 90 30 11 117 92 44 159 62 60 51 201 89 87 60 45 . Initial 89 | . . 22 11 3 53 44 47 62 42 21 35 89 42 60 31 . Average 34 | . 40 28 11 47 59 44 96 61 38 24 127 88 47 60 26 . Maximum Alert Level 1 | . . . . . . . . . . . 1 . . . . . Low Security (%) 99 | 100 100 100 100 100 100 100 100 100 100 100 91 100 100 100 100 . Level 1 . | . . . . . . . . . . . 8 . . . . . Level 2 . | . . . . . . . . . . . . . . . . . Level 3 . | . . . . . . . . . . . . . . . . . Level 4 . | . . . . . . . . . . . . . . . . . Level 5 . | . . . . . . . . . . . . . . . . . High Security . | . . . . . . . . . . . . . . . . . Max Security . | . . . . . . . . . . . . . . . . . Squads Dispatched 5 | . 1 . . 1 . . . 1 . 1 . . . . 1 . Investigation 3 | . 1 . . . . . . 1 . 1 . . . . . . Extermination . | . . . . . . . . . . . . . . . . . Reinforcement 2 | . . . . 1 . . . . . . . . . . 1 . Assault . | . . . . . . . . . . . . . . . . . Garrison . | . . . . . . . . . . . . . . . . . Intercept . | . . . . . . . . . . . . . . . . . Searches Triggered . | . . . . . . . . . . . . . . . . . Construction Impeded . | . . . . . . . . . . . . . . . . . Haulers Reinforced . | . . . . . . . . . . . . . . . . . Active Scanning Responses . | . . . . . . . . . . . . . . . . . Cargo Convoy Interrupts . | . . . . . . . . . . . . . . . . . Stealth | -11 -10 -9 -9 -8 -7 -6 -6 -6 -6 -5 -5 -5 -4 -4 -4 -4 --------- Run | Jun Mat Mat Min Mat Fac Fac Gar Fac Gar Fac Gar Fac Fac Gar Fac Upp Distress Signals 4 | . . . . 2 . . . . . . . . 1 . 1 . Communications Jammed . | . . . . . . . . . . . . . . . . . Distress Signals . | . . . . . . . . . . . . . . . . . Times Spotted 160 | 1 12 . . 22 1 . 7 . 14 1 79 . 5 . 13 5 Peak Tracking Total 23 | 1 10 . . 14 1 . 7 . 8 1 23 . 6 . 15 4 Tactical Retreats 5 | . . . . . . . . . . . 3 . . . 1 1 Traps | -11 -10 -9 -9 -8 -7 -6 -6 -6 -6 -5 -5 -5 -4 -4 -4 -4 ------- Run | Jun Mat Mat Min Mat Fac Fac Gar Fac Gar Fac Gar Fac Fac Gar Fac Upp Traps Triggered 4 | . 1 . . . . . . . . . 2 . . . 1 . Indirectly . | . . . . . . . . . . . . . . . . . Trap Hack Attempts . | . . . . . . . . . . . . . . . . . Triggered . | . . . . . . . . . . . . . . . . . Disarmed . | . . . . . . . . . . . . . . . . . Reprogrammed 6 | . . . . 6 . . . . . . . . . . . . Reused 1 | . . . . 1 . . . . . . . . . . . . Traps Extracted . | . . . . . . . . . . . . . . . . . Installed . | . . . . . . . . . . . . . . . . . Triggered 1 | . . . . 1 . . . . . . . . . . . . Machines | -11 -10 -9 -9 -8 -7 -6 -6 -6 -6 -5 -5 -5 -4 -4 -4 -4 ---------- Run | Jun Mat Mat Min Mat Fac Fac Gar Fac Gar Fac Gar Fac Fac Gar Fac Upp Machines Disabled . | . . . . . . . . . . . . . . . . . Max in Single Turn . | . . . . . . . . . . . . . . . . . Machines Repaired . | . . . . . . . . . . . . . . . . . Machines Sabotaged . | . . . . . . . . . . . . . . . . . Overloaded Fab Kills . | . . . . . . . . . . . . . . . . . Hacking | -11 -10 -9 -9 -8 -7 -6 -6 -6 -6 -5 -5 -5 -4 -4 -4 -4 --------- Run | Jun Mat Mat Min Mat Fac Fac Gar Fac Gar Fac Gar Fac Fac Gar Fac Upp Machines Accessed 18 | . . 1 . 2 1 1 2 2 . 4 2 . 2 . 1 . Terminals 12 | . . 1 . 2 1 . 2 . . 2 2 . 1 . 1 . Fabricators 2 | . . . . . . . . 1 . 1 . . . . . . Repair Stations . | . . . . . . . . . . . . . . . . . Recycling Units . | . . . . . . . . . . . . . . . . . Scanalyzers . | . . . . . . . . . . . . . . . . . Garrison Access 4 | . . . . . . 1 . 1 . 1 . . 1 . . . Total Hacks 32 | . . 2 . 6 3 2 3 3 . 6 4 . 2 . 1 . Successful 12 | . . 1 . 1 2 1 2 1 . 2 1 . 1 . . . Failed 20 | . . 1 . 5 1 1 1 2 . 4 3 . 1 . 1 . Catastrophic 8 | . . . . 2 1 . . 1 . 4 . . . . . . Database Lockouts . | . . . . . . . . . . . . . . . . . Manual 13 | . . 2 . 3 2 . . . . 4 . . 1 . 1 . Terminals 24 | . . 2 . 6 3 . 3 . . 4 4 . 1 . 1 . Fabricators 3 | . . . . . . . . 2 . 1 . . . . . . Repair Stations . | . . . . . . . . . . . . . . . . . Recycling Units . | . . . . . . . . . . . . . . . . . Scanalyzers . | . . . . . . . . . . . . . . . . . Garrison Access 5 | . . . . . . 2 . 1 . 1 . . 1 . . . Terminal Hacks 8 | . . 1 . 1 2 . 2 . . 1 1 . . . . . Open Door 1 | . . . . . . . 1 . . . . . . . . . Open DSF 1 | . . . . . . . . . . 1 . . . . . . Level Access Points 1 | . . . . . 1 . . . . . . . . . . . Branch Access Points 1 | . . 1 . . . . . . . . . . . . . . Alert Level 1 | . . . . . 1 . . . . . . . . . . . Reprogram Traps 1 | . . . . 1 . . . . . . . . . . . . Garrison Registry 1 | . . . . . . . 1 . . . . . . . . . Security Stations 1 | . . . . . . . . . . . 1 . . . . . Fabricator Hacks . | . . . . . . . . . . . . . . . . . Repair Station Hacks . | . . . . . . . . . . . . . . . . . Recycling Unit Hacks . | . . . . . . . . . . . . . . . . . Scanalyzer . | . . . . . . . . . . . . . . . . . Garrison Access Hacks 4 | . . . . . . 1 . 1 . 1 . . 1 . . . Unlock Access 4 | . . . . . . 1 . 1 . 1 . . 1 . . . Unauthorized Hacks . | . . . . . . . . . . . . . . . . . Terminals . | . . . . . . . . . . . . . . . . . Fabricators . | . . . . . . . . . . . . . . . . . Repair Stations . | . . . . . . . . . . . . . . . . . Recycling Units . | . . . . . . . . . . . . . . . . . Scanalyzers . | . . . . . . . . . . . . . . . . . Garrison Access . | . . . . . . . . . . . . . . . . . Data Cores Recovered . | . . . . . . . . . . . . . . . . . Used . | . . . . . . . . . . . . . . . . . Hacking Detections 12 | . . . . 2 . 1 1 2 . 2 2 . 1 . 1 . Full Trace Events 3 | . . . . . . . . 1 . 1 1 . . . . . Feedback Events . | . . . . . . . . . . . . . . . . . Feedback Blocked . | . . . . . . . . . . . . . . . . . Robot Schematics Acquired . | . . . . . . . . . . . . . . . . . Robots Built . | . . . . . . . . . . . . . . . . . Authchips . | . . . . . . . . . . . . . . . . . Time . | . . . . . . . . . . . . . . . . . Total Robot Build Rating . | . . . . . . . . . . . . . . . . . Part Schematics Acquired . | . . . . . . . . . . . . . . . . . Parts Built . | . . . . . . . . . . . . . . . . . Authchips . | . . . . . . . . . . . . . . . . . Time . | . . . . . . . . . . . . . . . . . Total Part Build Rating . | . . . . . . . . . . . . . . . . . Parts Repaired . | . . . . . . . . . . . . . . . . . Time . | . . . . . . . . . . . . . . . . . Parts Recycled . | . . . . . . . . . . . . . . . . . Recycled Matter . | . . . . . . . . . . . . . . . . . Retrieved Matter . | . . . . . . . . . . . . . . . . . Retrieved Components . | . . . . . . . . . . . . . . . . . Parts Scanalyzed . | . . . . . . . . . . . . . . . . . Part Schematics Acquired . | . . . . . . . . . . . . . . . . . Parts Damaged . | . . . . . . . . . . . . . . . . . Bothacking | -11 -10 -9 -9 -8 -7 -6 -6 -6 -6 -5 -5 -5 -4 -4 -4 -4 ------------ Run | Jun Mat Mat Min Mat Fac Fac Gar Fac Gar Fac Gar Fac Fac Gar Fac Upp Used RIF Installer 3 | . . . . . . . 1 . . . 1 . . 1 . . Hotswap 1 | . . . . . . . . . . . 1 . . . . . Alert ID Control 1 | . . . . . . . . . . . . . . 1 . . Robots Hacked 7 | . . . . 2 . . . . 1 . 3 1 . . . . Non-combat 2 | . . . . 1 . . . . . . . 1 . . . . Combat 5 | . . . . 1 . . . . 1 . 3 . . . . . Robot Hacks Applied 8 | . . . . 3 . . . . 1 . 3 1 . . . . map_walls 1 | . . . . . . . . . . . . 1 . . . . find_terminals 1 | . . . . 1 . . . . . . . . . . . . find_shortcuts 5 | . . . . 1 . . . . 1 . 3 . . . . . find_garrison 1 | . . . . 1 . . . . . . . . . . . . Relay Couplers Released . | . . . . . . . . . . . . . . . . . Fabnet Peak Effective % . | . . . . . . . . . . . . . . . . . Robots Rewired 3 | . . . . . . . . . 3 . . . . . . . Allies Hacked . | . . . . . . . . . . . . . . . . . Hacks Repelled . | . . . . . . . . . . . . . . . . . Allies | -11 -10 -9 -9 -8 -7 -6 -6 -6 -6 -5 -5 -5 -4 -4 -4 -4 -------- Run | Jun Mat Mat Min Mat Fac Fac Gar Fac Gar Fac Gar Fac Fac Gar Fac Upp Total Allies 4 | . . . . . . . 1 . 3 . . . . . . . Largest Group 3 | . . . . . . . 1 . 3 . . . . . . . Highest-Rated Group 46 | . . . . . . . 46 . 36 . . . . . . . Highest-Rated Ally 46 | . . . . . . . 46 . 12 . . . . . . . Total Orders . | . . . . . . . . . . . . . . . . . Ally Attacks 17 | . . . . . . . 10 . 7 . . . . . . . Total Damage 371 | . . . . . . . 298 . 73 . . . . . . . Kills 3 | . . . . . . . 3 . . . . . . . . . Allies Corrupted . | . . . . . . . . . . . . . . . . . Allies Melted . | . . . . . . . . . . . . . . . . . Intel | -11 -10 -9 -9 -8 -7 -6 -6 -6 -6 -5 -5 -5 -4 -4 -4 -4 ------- Run | Jun Mat Mat Min Mat Fac Fac Gar Fac Gar Fac Gar Fac Fac Gar Fac Upp Robot Analysis Total 7 | 1 . . . 2 . . . 1 1 . 1 1 . . . . Derelict Logs Recovered 3 | . . . 1 . . . . . . . . . . . . 2 Drone Launches . | . . . . . . . . . . . . . . . . . Drone Recoveries . | . . . . . . . . . . . . . . . . . Exploration | -11 -10 -9 -9 -8 -7 -6 -6 -6 -6 -5 -5 -5 -4 -4 -4 -4 ------------- Run | Jun Mat Mat Min Mat Fac Fac Gar Fac Gar Fac Gar Fac Fac Gar Fac Upp Turns Passed 2647 | 962 126 34 33 77 33 30 113 96 153 65 183 33 80 131 216 282 Spaces Moved 3366 | 637 162 67 61 147 90 81 219 136 165 179 285 50 97 164 297 529 Core 974 | 12 21 67 61 16 . . 23 46 1 . 77 24 . . 97 529 Treads . | . . . . . . . . . . . . . . . . . Legs . | . . . . . . . . . . . . . . . . . Wheels 1478 | 625 141 . . . . . . 90 135 . . 26 97 164 200 . Hover 106 | . . . . 98 . . . . . . 8 . . . . . Flight 808 | . . . . 33 90 81 196 . 29 179 200 . . . . . Fastest Speed 32 | 50 50 50 50 37 37 37 37 50 32 32 32 50 80 80 50 50 Average Speed 60 | 79 76 50 50 51 37 37 38 69 71 32 43 65 80 80 70 50 Slowest Speed 200 | 80 80 50 50 60 37 37 50 80 80 32 200 80 80 80 80 50 Overloaded Moves . | . . . . . . . . . . . . . . . . . Propulsion Burnouts . | . . . . . . . . . . . . . . . . . Robots Hopped 15 | . . . . . . . . . 1 3 11 . . . . . Cave-ins Triggered . | . . . . . . . . . . . . . . . . . Exploration Rate (%) 25 | 40 46 15 21 30 5 4 33 4 37 12 55 1 4 37 15 73 Regions Visited 16 Branch Regions 2 Pre-discovered Areas . | . . . . . . . . . . . . . . . . . Known Exits Taken 6 | . . 1 . . 1 1 . 1 . 1 . . 1 . . . Unknown Exits Taken 6 | 1 1 . 1 1 . . . . . . . 1 . . 1 . Scrap Searched 3 | . . . 1 . . . . . . . . . . . . 2 Spaces Dug . | . . . . . . . . . . . . . . . . . Terrain Destroyed . | . . . . . . . . . . . . . . . . . Melee . | . . . . . . . . . . . . . . . . . Projectile . | . . . . . . . . . . . . . . . . . AOE . | . . . . . . . . . . . . . . . . . Terrain Rammed . | . . . . . . . . . . . . . . . . . Walls Destroyed . | . . . . . . . . . . . . . . . . . Machines Disabled . | . . . . . . . . . . . . . . . . . Actions | -11 -10 -9 -9 -8 -7 -6 -6 -6 -6 -5 -5 -5 -4 -4 -4 -4 --------- Run | Jun Mat Mat Min Mat Fac Fac Gar Fac Gar Fac Gar Fac Fac Gar Fac Upp Total 3933 | 1092 164 66 62 147 89 81 239 136 198 180 321 49 98 163 302 546 Wait 28 | . . . 2 . . . 9 . . . . . . . . 17 Move 3330 | 636 161 66 60 146 89 81 218 136 162 174 267 49 97 163 296 529 Hop 9 | . . . . . . . . . 1 2 6 . . . . . Pick Up . | . . . . . . . . . . . . . . . . . Fast Attach . | . . . . . . . . . . . . . . . . . Attach . | . . . . . . . . . . . . . . . . . Detach . | . . . . . . . . . . . . . . . . . Swap . | . . . . . . . . . . . . . . . . . Drop . | . . . . . . . . . . . . . . . . . Fire 23 | . . . . . . . 10 . . 4 7 . 1 . 1 . Melee . | . . . . . . . . . . . . . . . . . Ram 35 | . 3 . . . . . 2 . 1 . 24 . . . 5 . Kick . | . . . . . . . . . . . . . . . . . Crush . | . . . . . . . . . . . . . . . . . Escape Stasis 15 | . . . . . . . . . . . 15 . . . . . Rewire 37 | . . . . 1 . . . . 34 . 2 . . . . . Trap . | . . . . . . . . . . . . . . . . . Miscellaneous 456 | 456 . . . . . . . . . . . . . . . . Route ------- -11/Junkyard -10/Materials -9/Materials (discovered 2 exits: *Min / Sto) -9/Mines -8/Materials -7/Factory (discovered 5 exits: *Fac x4 / [*Low]) -6/Factory -6/Garrison (discovered 3 exits: *Fac x3) -6/Factory -6/Garrison (discovered 2 exits: *Fac / [*Fac]) -5/Factory -5/Garrison -5/Factory -4/Factory -4/Garrison -4/Factory -4/Upper Caves (discovered 1 exit: Upp) History --------- Turn | Location | Event 3 | -11/Junkyard | Discovered new exit (range 16) 669 | -11/Junkyard | Assembled infested the area 963 | -11/Junkyard | Entered Materials 1084 | -10/Materials | Discovered new exit (range 14) 1089 | -10/Materials | Entered another Materials area 1096 | -9/Materials | Identified exit to Mines 1096 | -9/Materials | Identified exit to Storage 1109 | -9/Materials | Lost 5 parts (1p2n1u1w) 1123 | -9/Materials | Entered Mines 1124 | -9/Mines | Assembled infested the area 1129 | -9/Mines | Assisted by a Guerilla fighting off Assembled 1144 | -9/Mines | Discovered new exit (range 12) 1147 | -9/Mines | Learned 2 Materials zone layouts 1156 | -9/Mines | Entered Materials 1228 | -8/Materials | Discovered new exit (range 14) 1233 | -8/Materials | Entered Factory 1247 | -7/Factory | Lost 3 parts (1p1n1w) 1249 | -7/Factory | Identified exit to Factory 1265 | -7/Factory | Discovered new exit (range 16) 1266 | -7/Factory | Entered another Factory area 1296 | -6/Factory | Identified exit to Garrison 1296 | -6/Factory | Entered Garrison 1312 | -6/Garrison | Discovered new exit (range 80) 1312 | -6/Garrison | Discovered new exit (range 68) 1312 | -6/Garrison | Discovered new exit (range 51) 1338 | -6/Garrison | Rescued a captive Derelict 1393 | -6/Garrison | Spotted Executioner 1393 | -6/Garrison | Spotted Executioner 1402 | -6/Garrison | Installed Relay Interface Framework 1407 | -6/Garrison | Core integrity fell below 50% 1409 | -6/Garrison | Entered Factory 1427 | -6/Factory | Lost 4 parts (1p2n1w) 1505 | -6/Factory | Identified exit to Garrison 1505 | -6/Factory | Entered Garrison 1518 | -6/Garrison | Spotted B-86 Titan 1519 | -6/Garrison | Spotted B-86 Titan 1542 | -6/Garrison | Discovered new exit (range 5) 1618 | -6/Garrison | Triggered checkpoint 1621 | -6/Garrison | Triggered checkpoint 1640 | -6/Garrison | Triggered checkpoint 1649 | -6/Garrison | Core integrity fell below 20% 1655 | -6/Garrison | Discovered new exit (range 10) 1658 | -6/Garrison | Entered Factory 1723 | -5/Factory | Identified exit to Garrison 1723 | -5/Factory | Entered Garrison 1734 | -5/Garrison | Triggered checkpoint 1753 | -5/Garrison | Learned Factory security intel 1758 | -5/Garrison | Triggered checkpoint 1760 | -5/Garrison | Triggered checkpoint 1776 | -5/Garrison | Triggered checkpoint 1783 | -5/Garrison | Expanded RIF knowledge: Hotswap 1814 | -5/Garrison | Triggered checkpoint 1859 | -5/Garrison | Core integrity fell below 50% 1901 | -5/Garrison | Core integrity fell below 20% 1901 | -5/Garrison | Discovered new exit (range 8) 1906 | -5/Garrison | Entered Factory 1928 | -5/Factory | Lost 17 parts (2p8n2u5w) 1931 | -5/Factory | Discovered new exit (range 10) 1939 | -5/Factory | Entered another Factory area 2019 | -4/Factory | Identified exit to Garrison 2019 | -4/Factory | Entered Garrison 2032 | -4/Garrison | Triggered checkpoint 2064 | -4/Garrison | Expanded RIF knowledge: Alert ID Control 2082 | -4/Garrison | Triggered checkpoint 2130 | -4/Garrison | Triggered checkpoint 2143 | -4/Garrison | Discovered new exit (range 10) 2150 | -4/Garrison | Entered Factory 2325 | -4/Factory | Spotted B-86 Titan 2332 | -4/Factory | Core integrity fell below 50% 2343 | -4/Factory | Lost 6 parts (1p2n2u1w) 2362 | -4/Factory | Discovered new exit (range 6) 2366 | -4/Factory | Entered Upper Caves 2498 | -4/Upper Caves | Encountered a Warlord checkpoint 2562 | -4/Upper Caves | Learned 4 Research zone layouts 2583 | -4/Upper Caves | Core integrity fell below 20% 2643 | -4/Upper Caves | Identified exit to Upper Caves 2648 | -4/Upper Caves | Destroyed by P-70 Sage with Tesla Rifle Last Messages --------------- 02491_ Found Arm. Huge Wheel. 02491_ Found Plasma Rifle. 02491_ Found Impulse Thruster. 02491_ Found 20 Matter. 02498_ YO-AT3(M): "You haven't seen any Assembled, have you?" 02531_ Slug penetrates Wall. 02533_ P-70 Sage fails to hack YO-AT3(M). 02540_ P-70 Sage suffers critical hit (Destroy). 02540_ P-70 Sage destroyed. 02562_ Acquired derelict log, extracted data. Data stored: Research zone layouts (x4). 02565_ System corrupted: Substantial component data lost. 02581_ CHCXXUDCSIH|LGJX5N3GPXILF 02626_ JR0UN&C98ZN C4FIEOYN&|SF:D 02633_ Searching scrap... 02633_ Found System Shield. 02633_ Found Shock Absorption System. 02633_ Found 30 Matter. 02643_ Acquired derelict log, extracted data. 02646_ System corrupted: Component data lost. Map ----- +----------------------------------------------------+ | ?????????????????????????????????????????????????? | | ?????????????????????????????????????????????????? | | ?????????????????????????????????????????????????? | | ?????????????????????????????????????????????????? | | ?????????????????????????????????????????????????? | | ?????????????????????????????????????????????????? | | ?????????????????????????????????????????????????? | | ?????????????????????????????????????????????????? | | ?????????????????????????????????????????????????? | | ?????????????????????????????????????????????????? | | ?????????????????????????????????????? ??????????? | | ?????????????????????????????????????? ?????????? | | ?????????????????????????????????????? ????????? | | ?????????????????????????????##?????? ?????????? | | ????????????????????????????## ###??? ?????????? | | ????????????????????????????# #### ?????????? | | ????????????????????????????# ?????????? | | ????????????????????????????# ??????????? | | ?????????????????????????????# ??????????? | | ??????????????????????????????# #?????????? | | ???????????????????????????????# ##?####???? | | ???????????????????????######### ### ###? | | ???????????????????????# p ## | | ???????????????????????# $ " # | | ???????????????????????# """ # | | ???????????????????????# u " """" # | | ???????????????????????# """" " ### ## | | ???????????????????????# """""" " #????? | | ??????????????????????# """""" ###### | | ??????????????????????# " """"" # | | ??????????????????????## " | | ???????????????????????# """""" ### | | ???????????????????????# " """""" #?# | | ???????????????????????# """" """ ### | | ??????????????????????? "" " | | ??????????????????????? "!%! # | | ??????????????????????? ?$ ## | | ??????????????????????? #?###### ########## # | | ??????????????????????? ???????##?????????##### | | ????>????????????????????????????????????????????# | | ?????????????????????????????????????????????????# | | ?????????????????????????????????????????????????# | | ?????????????????????????????????????????????????# | | ?????????????????????????????????????????????????? | | ?????????????????????????????????????????????????? | | ?????????????????????????????????????????????????? | | ?????????????????????????????????????????????????? | | ?????????????????????????????????????????????????? | | ?????????????????????????????????????????????????? | | ?????????????????????????????????????????????????? | +----------------------------------------------------+ Best States ------------- Heat Dissipation 54 Energy Generation 25 Energy Capacity 110 Matter Stores 100 Matter Capacity 100 Sight Range 16 Terrain Scan Range 16 Terrain Scan Density 85 Resistance: EX 25 Resistance: EM 75 Evasion (%) 63 Target Analysis 6 Offensive Hacking 10 Item Schematics ----------------- None Robot Schematics ------------------ None Fabricated ------------ Nothing Alien Tech Used ----------------- None Achievements -------------- Streaker Challenges ------------ None Polymind | -11 -10 -9 -9 -8 -7 -6 -6 -6 -6 -5 -5 -5 -4 -4 -4 -4 ---------- Run | Jun Mat Mat Min Mat Fac Fac Gar Fac Gar Fac Gar Fac Fac Gar Fac Upp Hosts 9 | 1 . . . 2 . . . 1 1 . 3 1 . . . . Combat Hostiles 5 | . . . . 1 . . . . 1 . 3 . . . . . Allies . | . . . . . . . . . . . . . . . . . Unique Host Classes 6 | 1 . . . 2 . . . 1 . . 1 1 . . . . Average Host Suspicion 33 | 1 63 13 12 71 28 17 64 14 24 71 89 4 35 36 64 58 Unsuspicious Activity 2366 | 2282 . . . 7 . . 10 20 45 . . 2 . . . . Returns to Shadow . | . . . . . . . . . . . . . . . . . Fuzzy Dispatches . | . . . . . . . . . . . . . . . . . Protomatter Created 226 | 72 . . 60 . . . 67 . 5 . 22 . . . . . Used 121 | 5 . . . 11 . . . 5 14 . 81 5 . . . . Decayed 48 | . . . 5 . . . 34 . . . 9 . . . . . Highest Spend 53 | 5 . . . 6 . . . 5 14 . 53 5 . . . . Top 5 Hosts by Kills: P-70 Sage (-5/Garrison: 1) Game ------ Seed RecyclingSapperCapacitor Manual? 0 Play Time 00:33:13 Cumulative 102.2 hours Start 2023.01.29 @ 00:42:11 End 2023.01.29 @ 01:13:49 Sessions 1 Manual Loads 0 Difficulty Rogue Special Mode Winter2022/Polymind Game No. 88 Rogue 88 Adventurer 0 Explorer 0 Win Type - Total 6 Types 5/0/1/0/0/0/0/0/0 Lore% 66 Gallery% 64 Achievement% 56 Wizard Run 0 Options --------- ASCII 0 Keyboard 1 Movement Vi Keybinds 0 Fullscreen 2 Font 24/Proggy Map View 76x50 Tactical HUD 1 Map Filters NONE Filters NONE Steam 1 RUN: dc9b77dc-f69e-4716-a41c-bb6ece741858